[Event "Titled Tuesday Blitz May 2 Early 2023"]
[White "Allahverdiyeva, Ayan"]
[Black "Gulevich, Artem"]
[WhiteFideId "13412590"]
[BlackFideId "24119580"]
[WhiteElo "1980"]
[BlackElo "2218"]
[Result "1-0"]
[Round "01"]
[TimeControl "180+2"]
[Date "2023.05.02"]
[WhiteClock "0:00:00"]
[BlackClock "0:00:00"]

1. e4 {[%clk 0:00:01]}  c5 {[%clk 0:00:01]} 2. Nf3 {[%clk 0:00:01]}  Nc6 {[%clk 0:00:01]} 3. Bb5 {[%clk 0:00:01]}  Qb6 {[%clk 0:00:01]} 4. Nc3 {[%clk 0:00:01]}  Nd4 {[%clk 0:00:01]} 5. Nd5 {[%clk 0:00:01]}  Qg6 {[%clk 0:00:01]} 6. O-O {[%clk 0:00:01]}  Nxb5 {[%clk 0:00:01]} 7. Qe2 {[%clk 0:00:01]}  e6 {[%clk 0:00:01]} 8. a4 {[%clk 0:00:01]}  exd5 {[%clk 0:00:01]} 9. exd5+ {[%clk 0:00:01]}  Be7 {[%clk 0:00:01]} 10. axb5 {[%clk 0:00:01]}  d6 {[%clk 0:00:01]} 11. Re1 {[%clk 0:00:01]}  Bg4 {[%clk 0:00:01]} 12. b6 {[%clk 0:00:01]}  a6 {[%clk 0:00:01]} 13. d4 {[%clk 0:00:00]}  cxd4 {[%clk 0:00:01]} 14. Ra4 {[%clk 0:00:00]}  Kf8 {[%clk 0:00:00]} 15. Rc4 {[%clk 0:00:00]}  Rc8 {[%clk 0:00:00]} 16. Nxd4 {[%clk 0:00:00]}  Bxe2 {[%clk 0:00:00]} 17. Rxc8+ {[%clk 0:00:00]}  Bd8 {[%clk 0:00:00]} 18. Rxe2 {[%clk 0:00:00]}  Qf6 {[%clk 0:00:00]} 19. Nc6 {[%clk 0:00:00]}  g6 {[%clk 0:00:00]} 20. Rxd8+ {[%clk 0:00:00]}  Kg7 {[%clk 0:00:00]} 21. Be3 {[%clk 0:00:00]}  bxc6 {[%clk 0:00:00]} 22. b7 {[%clk 0:00:00]}  Qxd8 {[%clk 0:00:00]} 23. Ba7 {[%clk 0:00:00]}  cxd5 {[%clk 0:00:00]} 24. b8=Q {[%clk 0:00:00]}  Qxb8 {[%clk 0:00:00]} 25. Bxb8 {[%clk 0:00:00]}  Nf6 {[%clk 0:00:00]} 26. Bxd6 {[%clk 0:00:00]}  Rc8 {[%clk 0:00:00]} 27. Be5 {[%clk 0:00:00]}  Rc6 {[%clk 0:00:00]} 28. Bd4 {[%clk 0:00:00]}  Kf8 {[%clk 0:00:00]} 29. f3 {[%clk 0:00:00]}  Nd7 {[%clk 0:00:00]} 30. Kf2 {[%clk 0:00:00]}  f6 {[%clk 0:00:00]} 31. Ke1 {[%clk 0:00:00]}  Kf7 {[%clk 0:00:00]} 32. Kd2 {[%clk 0:00:00]}  Nc5 {[%clk 0:00:00]} 33. Re3 {[%clk 0:00:00]}  Ne6 {[%clk 0:00:00]} 34. Rd3 {[%clk 0:00:00]}  Nxd4 {[%clk 0:00:00]} 35. Rxd4 {[%clk 0:00:00]}  Ke6 {[%clk 0:00:00]} 36. Ra4 {[%clk 0:00:00]}  Rb6 {[%clk 0:00:00]} 37. b3 {[%clk 0:00:00]}  Ke5 {[%clk 0:00:00]} 38. Kd3 {[%clk 0:00:00]}  f5 {[%clk 0:00:00]} 39. g3 {[%clk 0:00:00]}  g5 {[%clk 0:00:00]} 40. f4+ {[%clk 0:00:00]}  gxf4 {[%clk 0:00:00]} 41. gxf4+ {[%clk 0:00:00]}  Ke6 {[%clk 0:00:00]} 42. Kd4 {[%clk 0:00:00]}  Rc6 {[%clk 0:00:00]} 43. c3 {[%clk 0:00:00]}  Kd6 {[%clk 0:00:00]} 44. Ra5 {[%clk 0:00:00]}  Ke6 {[%clk 0:00:00]} 45. Rxd5 {[%clk 0:00:00]}  Rb6 {[%clk 0:00:00]} 46. Re5+ {[%clk 0:00:00]}  Kf6 {[%clk 0:00:00]} 47. b4 {[%clk 0:00:00]}  Rd6+ {[%clk 0:00:00]} 48. Rd5 {[%clk 0:00:00]}  Re6 {[%clk 0:00:00]} 49. Re5 {[%clk 0:00:00]}  Rc6 {[%clk 0:00:00]} 50. c4 {[%clk 0:00:00]}  Rd6+ {[%clk 0:00:00]} 51. Rd5 {[%clk 0:00:00]}  Rb6 {[%clk 0:00:00]} 52. Kc5 {[%clk 0:00:00]}  Rb8 {[%clk 0:00:00]} 53. Rd6+ {[%clk 0:00:00]}  Ke7 {[%clk 0:00:00]} 54. Rxa6 {[%clk 0:00:00]}  Rc8+ {[%clk 0:00:00]} 55. Kd5 {[%clk 0:00:00]}  Rd8+ {[%clk 0:00:00]} 56. Ke5 {[%clk 0:00:00]}  Rb8 {[%clk 0:00:00]} 57. b5 {[%clk 0:00:00]}  Rc8 {[%clk 0:00:00]} 58. Ra7+ {[%clk 0:00:00]}  Kf8 {[%clk 0:00:00]} 59. Kf6 {[%clk 0:00:00]}  Ke8 {[%clk 0:00:00]} 60. c5 {[%clk 0:00:00]}  Rxc5 {[%clk 0:00:00]} 61. Rxh7 {[%clk 0:00:00]}  Rxb5 {[%clk 0:00:00]} 62. Rh5 {[%clk 0:00:00]}  Rb6+ {[%clk 0:00:00]} 63. Kxf5 {[%clk 0:00:00]}  Kf7 {[%clk 0:00:00]} 64. Rh7+ {[%clk 0:00:00]}  Kg8 {[%clk 0:00:00]} 65. Rc7 {[%clk 0:00:00]}  Rb5+ {[%clk 0:00:00]} 66. Kg4 {[%clk 0:00:00]}  Rb2 {[%clk 0:00:00]} 67. h4 {[%clk 0:00:00]}  Rg2+ {[%clk 0:00:00]} 68. Kf5 {[%clk 0:00:00]}  Rh2 {[%clk 0:00:00]} 69. Kg5 {[%clk 0:00:00]}  Rg2+ {[%clk 0:00:00]} 70. Kf6 {[%clk 0:00:00]}  Rh2 {[%clk 0:00:00]} 71. Kg5 {[%clk 0:00:00]}  Rg2+ {[%clk 0:00:00]} 72. Kh6 {[%clk 0:00:00]}  Rg1 {[%clk 0:00:00]} 73. h5 {[%clk 0:00:00]}  Rg2 {[%clk 0:00:00]} 74. f5 {[%clk 0:00:00]}  Rg3 {[%clk 0:00:00]} 75. f6 {[%clk 0:00:00]}  Rg2 {[%clk 0:00:00]} 76. Rg7+ {[%clk 0:00:00]}  Kh8 {[%clk 0:00:00]} 77. f7 {[%clk 0:00:00]}  Rf2 {[%clk 0:00:00]} 78. Rg8# {[%clk 0:00:00]} 1-0


[Site "https://www.chess.com"]

[Event "Titled Tuesday Blitz May 2 Early 2023"]
[White "Ezat, Mohamed"]
[Black "Bashirli, Saadat"]
[WhiteFideId "10600906"]
[BlackFideId "13429990"]
[WhiteElo "2386"]
[BlackElo "1408"]
[Result "1-0"]
[Round "01"]
[TimeControl "180+2"]
[Date "2023.05.02"]
[WhiteClock "0:00:00"]
[BlackClock "0:00:00"]

1. d4 {[%clk 0:00:01]}  d5 {[%clk 0:00:01]} 2. c4 {[%clk 0:00:01]}  dxc4 {[%clk 0:00:01]} 3. e4 {[%clk 0:00:01]}  e5 {[%clk 0:00:01]} 4. Nf3 {[%clk 0:00:01]}  exd4 {[%clk 0:00:01]} 5. Bxc4 {[%clk 0:00:01]}  Bb4+ {[%clk 0:00:01]} 6. Nbd2 {[%clk 0:00:01]}  Nc6 {[%clk 0:00:01]} 7. O-O {[%clk 0:00:01]}  Bg4 {[%clk 0:00:01]} 8. Qb3 {[%clk 0:00:01]}  Qe7 {[%clk 0:00:01]} 9. h3 {[%clk 0:00:01]}  Be6 {[%clk 0:00:01]} 10. a3 {[%clk 0:00:01]}  Bd6 {[%clk 0:00:01]} 11. Qxb7 {[%clk 0:00:01]}  Rb8 {[%clk 0:00:01]} 12. Qxc6+ {[%clk 0:00:01]}  Bd7 {[%clk 0:00:01]} 13. Qa6 {[%clk 0:00:01]}  Nh6 {[%clk 0:00:01]} 14. e5 {[%clk 0:00:01]}  Bc5 {[%clk 0:00:01]} 15. Ne4 {[%clk 0:00:01]}  Nf5 {[%clk 0:00:01]} 16. e6 {[%clk 0:00:01]}  fxe6 {[%clk 0:00:00]} 17. Bg5 {[%clk 0:00:01]}  Qf8 {[%clk 0:00:00]} 18. Bxe6 {[%clk 0:00:01]}  Rb6 {[%clk 0:00:00]} 19. Bxd7+ {[%clk 0:00:01]}  Kxd7 {[%clk 0:00:00]} 20. Qa4+ {[%clk 0:00:01]}  Kc8 {[%clk 0:00:00]} 21. Qxa7 {[%clk 0:00:00]}  Rxb2 {[%clk 0:00:00]} 22. Nxc5 {[%clk 0:00:00]} 1-0


[Site "https://www.chess.com"]

[Event "Titled Tuesday Blitz May 2 Early 2023"]
[White "Aslanov, Umid"]
[Black "Kohler, Aran"]
[WhiteFideId "13412620"]
[BlackFideId "1002856"]
[WhiteElo "2013"]
[BlackElo "2010"]
[Result "0-1"]
[Round "01"]
[TimeControl "180+2"]
[Date "2023.05.02"]
[WhiteClock "0:00:01"]
[BlackClock "0:00:01"]

1. e3 {[%clk 0:00:01]}  c6 {[%clk 0:00:01]} 2. b3 {[%clk 0:00:01]}  d5 {[%clk 0:00:01]} 3. Bb2 {[%clk 0:00:01]}  Nf6 {[%clk 0:00:01]} 4. Nf3 {[%clk 0:00:01]}  a6 {[%clk 0:00:01]} 5. Be2 {[%clk 0:00:01]}  Bg4 {[%clk 0:00:01]} 6. O-O {[%clk 0:00:01]}  Nbd7 {[%clk 0:00:01]} 7. h3 {[%clk 0:00:01]}  Bxf3 {[%clk 0:00:01]} 8. Bxf3 {[%clk 0:00:01]}  e5 {[%clk 0:00:01]} 9. d4 {[%clk 0:00:01]}  e4 {[%clk 0:00:01]} 10. Be2 {[%clk 0:00:01]}  Bd6 {[%clk 0:00:01]} 11. c4 {[%clk 0:00:01]}  O-O {[%clk 0:00:01]} 12. Nc3 {[%clk 0:00:01]}  Rc8 {[%clk 0:00:01]} 13. Rc1 {[%clk 0:00:01]}  Bb8 {[%clk 0:00:01]} 14. cxd5 {[%clk 0:00:01]}  cxd5 {[%clk 0:00:01]} 15. Na4 {[%clk 0:00:01]}  Rxc1 {[%clk 0:00:01]} 16. Qxc1 {[%clk 0:00:01]}  Qc7 {[%clk 0:00:01]} 17. Nc5 {[%clk 0:00:01]}  Qh2# {[%clk 0:00:01]} 0-1


[Site "https://www.chess.com"]

[Event "Titled Tuesday Blitz May 2 Early 2023"]
[White "Marchesich, Giovanni"]
[Black "Gontcharov, Vladislav"]
[WhiteFideId "2824790"]
[BlackFideId "4123492"]
[WhiteElo "2209"]
[BlackElo "2420"]
[Result "0-1"]
[Round "01"]
[TimeControl "180+2"]
[Date "2023.05.02"]
[WhiteClock "0:00:00"]
[BlackClock "0:00:00"]

1. Nf3 {[%clk 0:00:01]}  Nf6 {[%clk 0:00:01]} 2. g3 {[%clk 0:00:01]}  c5 {[%clk 0:00:01]} 3. Bg2 {[%clk 0:00:01]}  Nc6 {[%clk 0:00:01]} 4. O-O {[%clk 0:00:01]}  e5 {[%clk 0:00:01]} 5. d3 {[%clk 0:00:01]}  d5 {[%clk 0:00:01]} 6. e4 {[%clk 0:00:01]}  Be7 {[%clk 0:00:01]} 7. Nc3 {[%clk 0:00:01]}  d4 {[%clk 0:00:01]} 8. Ne2 {[%clk 0:00:01]}  h6 {[%clk 0:00:01]} 9. Ne1 {[%clk 0:00:01]}  g5 {[%clk 0:00:01]} 10. f4 {[%clk 0:00:01]}  Rg8 {[%clk 0:00:01]} 11. Nf3 {[%clk 0:00:01]}  gxf4 {[%clk 0:00:01]} 12. gxf4 {[%clk 0:00:01]}  Ng4 {[%clk 0:00:01]} 13. Kh1 {[%clk 0:00:01]}  f6 {[%clk 0:00:01]} 14. Ng3 {[%clk 0:00:01]}  Be6 {[%clk 0:00:00]} 15. Nh4 {[%clk 0:00:01]}  Qd7 {[%clk 0:00:00]} 16. f5 {[%clk 0:00:00]}  Bf7 {[%clk 0:00:00]} 17. Bf3 {[%clk 0:00:00]}  h5 {[%clk 0:00:00]} 18. Qe2 {[%clk 0:00:00]}  O-O-O {[%clk 0:00:00]} 19. Bd2 {[%clk 0:00:00]}  Kb8 {[%clk 0:00:00]} 20. Rg1 {[%clk 0:00:00]}  Rc8 {[%clk 0:00:00]} 21. b3 {[%clk 0:00:00]}  Nb4 {[%clk 0:00:00]} 22. Be1 {[%clk 0:00:00]}  Bf8 {[%clk 0:00:00]} 23. a3 {[%clk 0:00:00]}  Nc6 {[%clk 0:00:00]} 24. Bd2 {[%clk 0:00:00]}  Ne3 {[%clk 0:00:00]} 25. Bxe3 {[%clk 0:00:00]}  dxe3 {[%clk 0:00:00]} 26. Qxe3 {[%clk 0:00:00]}  Nd4 {[%clk 0:00:00]} 27. Qf2 {[%clk 0:00:00]}  Rh8 {[%clk 0:00:00]} 28. Bd1 {[%clk 0:00:00]}  Bh6 {[%clk 0:00:00]} 29. Ra2 {[%clk 0:00:00]}  Bg5 {[%clk 0:00:00]} 30. Ng6 {[%clk 0:00:00]}  Rh6 {[%clk 0:00:00]} 31. Bxh5 {[%clk 0:00:00]}  Bxg6 {[%clk 0:00:00]} 32. Bxg6 {[%clk 0:00:00]}  Rch8 {[%clk 0:00:00]} 33. Rg2 {[%clk 0:00:00]}  Bf4 {[%clk 0:00:00]} 34. Nf1 {[%clk 0:00:00]}  Qe7 {[%clk 0:00:00]} 35. Rb2 {[%clk 0:00:00]}  Rh4 {[%clk 0:00:00]} 36. c3 {[%clk 0:00:00]}  Nc6 {[%clk 0:00:00]} 37. b4 {[%clk 0:00:00]}  cxb4 {[%clk 0:00:00]} 38. axb4 {[%clk 0:00:00]}  Qf8 {[%clk 0:00:00]} 39. Ra2 {[%clk 0:00:00]}  a6 {[%clk 0:00:00]} 40. Qc5 {[%clk 0:00:00]}  Qh6 {[%clk 0:00:00]} 41. Qd6+ {[%clk 0:00:00]}  Kc8 {[%clk 0:00:00]} 42. Qe6+ {[%clk 0:00:00]}  Kc7 {[%clk 0:00:00]} 43. Qf7+ {[%clk 0:00:00]}  Kb6 {[%clk 0:00:00]} 44. c4 {[%clk 0:00:00]}  Bxh2 {[%clk 0:00:00]} 45. c5+ {[%clk 0:00:00]}  Ka7 {[%clk 0:00:00]} 46. Rxh2 {[%clk 0:00:00]}  Qf4 {[%clk 0:00:00]} 47. b5 {[%clk 0:00:00]}  Qxf1# {[%clk 0:00:00]} 0-1


[Site "https://www.chess.com"]

[Event "Titled Tuesday Blitz May 2 Early 2023"]
[White "Priyanka Nutakki"]
[Black "Singh, Arvinder Preet"]
[WhiteFideId "25049615"]
[BlackFideId "5013240"]
[WhiteElo "2268"]
[BlackElo "2124"]
[Result "0-1"]
[Round "01"]
[TimeControl "180+2"]
[Date "2023.05.02"]
[WhiteClock "0:00:00"]
[BlackClock "0:00:00"]

1. c4 {[%clk 0:00:01]}  c5 {[%clk 0:00:01]} 2. Nc3 {[%clk 0:00:01]}  Nf6 {[%clk 0:00:01]} 3. Nf3 {[%clk 0:00:01]}  d5 {[%clk 0:00:01]} 4. cxd5 {[%clk 0:00:01]}  Nxd5 {[%clk 0:00:01]} 5. e3 {[%clk 0:00:01]}  Nc6 {[%clk 0:00:01]} 6. d4 {[%clk 0:00:01]}  cxd4 {[%clk 0:00:01]} 7. exd4 {[%clk 0:00:01]}  g6 {[%clk 0:00:01]} 8. Qb3 {[%clk 0:00:01]}  Nxc3 {[%clk 0:00:01]} 9. Bc4 {[%clk 0:00:01]}  Nd5 {[%clk 0:00:01]} 10. Bxd5 {[%clk 0:00:01]}  e6 {[%clk 0:00:01]} 11. Bxc6+ {[%clk 0:00:01]}  bxc6 {[%clk 0:00:01]} 12. O-O {[%clk 0:00:01]}  Bg7 {[%clk 0:00:01]} 13. Qe3 {[%clk 0:00:01]}  O-O {[%clk 0:00:01]} 14. Bd2 {[%clk 0:00:01]}  Ba6 {[%clk 0:00:01]} 15. Rfc1 {[%clk 0:00:01]}  Qb6 {[%clk 0:00:01]} 16. Rab1 {[%clk 0:00:01]}  Rac8 {[%clk 0:00:01]} 17. Ne5 {[%clk 0:00:01]}  Rfd8 {[%clk 0:00:01]} 18. Bc3 {[%clk 0:00:01]}  Rd5 {[%clk 0:00:01]} 19. Qf3 {[%clk 0:00:01]}  Bxe5 {[%clk 0:00:01]} 20. dxe5 {[%clk 0:00:01]}  c5 {[%clk 0:00:01]} 21. h4 {[%clk 0:00:01]}  h5 {[%clk 0:00:01]} 22. Rd1 {[%clk 0:00:01]}  Bb7 {[%clk 0:00:01]} 23. Rxd5 {[%clk 0:00:01]}  Bxd5 {[%clk 0:00:01]} 24. Qe3 {[%clk 0:00:01]}  Bxa2 {[%clk 0:00:01]} 25. Ra1 {[%clk 0:00:01]}  Bd5 {[%clk 0:00:01]} 26. Ra4 {[%clk 0:00:01]}  Qb3 {[%clk 0:00:01]} 27. Rf4 {[%clk 0:00:01]}  Qd1+ {[%clk 0:00:01]} 28. Kh2 {[%clk 0:00:01]}  Qf1 {[%clk 0:00:01]} 29. Qg3 {[%clk 0:00:01]}  Rd8 {[%clk 0:00:00]} 30. Rf6 {[%clk 0:00:01]}  Qb1 {[%clk 0:00:00]} 31. Qg5 {[%clk 0:00:00]}  Qe4 {[%clk 0:00:00]} 32. Rxg6+ {[%clk 0:00:00]}  Qxg6 {[%clk 0:00:00]} 33. Qxd8+ {[%clk 0:00:00]}  Kh7 {[%clk 0:00:00]} 34. Qg5 {[%clk 0:00:00]}  Qxg5 {[%clk 0:00:00]} 35. hxg5 {[%clk 0:00:00]}  Kg6 {[%clk 0:00:00]} 36. f4 {[%clk 0:00:00]}  Kf5 {[%clk 0:00:00]} 37. Bd2 {[%clk 0:00:00]}  Kg4 {[%clk 0:00:00]} 38. Be3 {[%clk 0:00:00]}  c4 {[%clk 0:00:00]} 39. g3 {[%clk 0:00:00]}  a5 {[%clk 0:00:00]} 40. Bd2 {[%clk 0:00:00]}  a4 {[%clk 0:00:00]} 41. Bc1 {[%clk 0:00:00]}  Be4 {[%clk 0:00:00]} 42. Bd2 {[%clk 0:00:00]}  Kf3 {[%clk 0:00:00]} 43. Kh3 {[%clk 0:00:00]}  Ke2 {[%clk 0:00:00]} 44. Bc3 {[%clk 0:00:00]}  Kd3 {[%clk 0:00:00]} 45. Be1 {[%clk 0:00:00]}  Kc2 {[%clk 0:00:00]} 46. Bc3 {[%clk 0:00:00]}  a3 {[%clk 0:00:00]} 0-1


[Site "https://www.chess.com"]

[Event "Titled Tuesday Blitz May 2 Early 2023"]
[White "Adithya A Chullikkad"]
[Black "Janaszak, Dawid"]
[WhiteFideId "45078734"]
[BlackFideId "1119206"]
[WhiteElo "1984"]
[BlackElo "2220"]
[Result "0-1"]
[Round "01"]
[TimeControl "180+2"]
[Date "2023.05.02"]
[WhiteClock "0:00:00"]
[BlackClock "0:00:00"]

1. d4 {[%clk 0:00:01]}  Nf6 {[%clk 0:00:01]} 2. c4 {[%clk 0:00:01]}  e6 {[%clk 0:00:01]} 3. Nc3 {[%clk 0:00:01]}  Bb4 {[%clk 0:00:01]} 4. Qc2 {[%clk 0:00:01]}  d5 {[%clk 0:00:01]} 5. cxd5 {[%clk 0:00:01]}  exd5 {[%clk 0:00:01]} 6. Bg5 {[%clk 0:00:01]}  h6 {[%clk 0:00:01]} 7. Bh4 {[%clk 0:00:01]}  g5 {[%clk 0:00:01]} 8. Bg3 {[%clk 0:00:01]}  Ne4 {[%clk 0:00:01]} 9. e3 {[%clk 0:00:01]}  c5 {[%clk 0:00:01]} 10. Bb5+ {[%clk 0:00:01]}  Nc6 {[%clk 0:00:01]} 11. Ne2 {[%clk 0:00:01]}  Bf5 {[%clk 0:00:01]} 12. Qa4 {[%clk 0:00:01]}  O-O {[%clk 0:00:01]} 13. f3 {[%clk 0:00:01]}  Nxg3 {[%clk 0:00:01]} 14. hxg3 {[%clk 0:00:01]}  Kg7 {[%clk 0:00:01]} 15. Bxc6 {[%clk 0:00:01]}  bxc6 {[%clk 0:00:01]} 16. Qxc6 {[%clk 0:00:01]}  Bg6 {[%clk 0:00:01]} 17. Kf2 {[%clk 0:00:01]}  Re8 {[%clk 0:00:01]} 18. Qxd5 {[%clk 0:00:01]}  Qe7 {[%clk 0:00:01]} 19. e4 {[%clk 0:00:01]}  Rad8 {[%clk 0:00:01]} 20. Qe5+ {[%clk 0:00:01]}  Qxe5 {[%clk 0:00:01]} 21. dxe5 {[%clk 0:00:01]}  Rd2 {[%clk 0:00:01]} 22. Nd5 {[%clk 0:00:01]}  Rxe5 {[%clk 0:00:00]} 23. Rhd1 {[%clk 0:00:01]}  Rxb2 {[%clk 0:00:00]} 24. Rdb1 {[%clk 0:00:01]}  Rd2 {[%clk 0:00:00]} 25. Nxb4 {[%clk 0:00:01]}  cxb4 {[%clk 0:00:00]} 26. Rxb4 {[%clk 0:00:01]}  Rc5 {[%clk 0:00:00]} 27. Rd4 {[%clk 0:00:01]}  Rb2 {[%clk 0:00:00]} 28. a4 {[%clk 0:00:00]}  Rcc2 {[%clk 0:00:00]} 29. Re1 {[%clk 0:00:00]}  f5 {[%clk 0:00:00]} 30. e5 {[%clk 0:00:00]}  Bf7 {[%clk 0:00:00]} 31. Rd7 {[%clk 0:00:00]}  Kg6 {[%clk 0:00:00]} 32. Rd6+ {[%clk 0:00:00]}  Kg7 {[%clk 0:00:00]} 33. Rd7 {[%clk 0:00:00]}  Kf8 {[%clk 0:00:00]} 34. Ke3 {[%clk 0:00:00]}  a5 {[%clk 0:00:00]} 35. g4 {[%clk 0:00:00]}  f4+ {[%clk 0:00:00]} 36. Ke4 {[%clk 0:00:00]}  Rxe2+ {[%clk 0:00:00]} 37. Rxe2 {[%clk 0:00:00]}  Bg6+ {[%clk 0:00:00]} 38. Kd5 {[%clk 0:00:00]}  Rxe2 {[%clk 0:00:00]} 39. Ke6 {[%clk 0:00:00]}  Be8 {[%clk 0:00:00]} 40. Kf6 {[%clk 0:00:00]}  Bxd7 {[%clk 0:00:00]} 0-1


[Site "https://www.chess.com"]

[Event "Titled Tuesday Blitz May 2 Early 2023"]
[White "Pham, Khoi"]
[Black "Antonio, Jorge Carlos"]
[WhiteFideId "1054988"]
[BlackFideId "113190"]
[WhiteElo "2355"]
[BlackElo "2247"]
[Result "1/2-1/2"]
[Round "01"]
[TimeControl "180+2"]
[Date "2023.05.02"]
[WhiteClock "0:00:00"]
[BlackClock "0:00:00"]

1. d4 {[%clk 0:00:01]}  d5 {[%clk 0:00:01]} 2. c4 {[%clk 0:00:01]}  c6 {[%clk 0:00:01]} 3. Nc3 {[%clk 0:00:01]}  dxc4 {[%clk 0:00:01]} 4. Nf3 {[%clk 0:00:01]}  b5 {[%clk 0:00:01]} 5. e4 {[%clk 0:00:01]}  e6 {[%clk 0:00:01]} 6. Be2 {[%clk 0:00:01]}  Nf6 {[%clk 0:00:01]} 7. O-O {[%clk 0:00:01]}  Bb7 {[%clk 0:00:01]} 8. Qc2 {[%clk 0:00:01]}  Be7 {[%clk 0:00:01]} 9. e5 {[%clk 0:00:01]}  Nd5 {[%clk 0:00:01]} 10. b3 {[%clk 0:00:01]}  b4 {[%clk 0:00:01]} 11. Nxd5 {[%clk 0:00:01]}  cxd5 {[%clk 0:00:01]} 12. bxc4 {[%clk 0:00:01]}  dxc4 {[%clk 0:00:01]} 13. Bxc4 {[%clk 0:00:01]}  O-O {[%clk 0:00:01]} 14. Rd1 {[%clk 0:00:01]}  Bd5 {[%clk 0:00:01]} 15. Be3 {[%clk 0:00:01]}  a5 {[%clk 0:00:01]} 16. Rac1 {[%clk 0:00:01]}  Na6 {[%clk 0:00:01]} 17. Bxd5 {[%clk 0:00:01]}  Qxd5 {[%clk 0:00:01]} 18. Bg5 {[%clk 0:00:01]}  Bd8 {[%clk 0:00:01]} 19. Bxd8 {[%clk 0:00:00]}  Qxd8 {[%clk 0:00:01]} 20. d5 {[%clk 0:00:00]}  Rc8 {[%clk 0:00:01]} 21. Qe2 {[%clk 0:00:00]}  Rxc1 {[%clk 0:00:01]} 22. Rxc1 {[%clk 0:00:00]}  Qxd5 {[%clk 0:00:01]} 23. Qxa6 {[%clk 0:00:00]}  Qxa2 {[%clk 0:00:01]} 24. h4 {[%clk 0:00:00]}  b3 {[%clk 0:00:00]} 25. Rc8 {[%clk 0:00:00]}  g6 {[%clk 0:00:00]} 26. Rxf8+ {[%clk 0:00:00]}  Kxf8 {[%clk 0:00:00]} 27. Kh2 {[%clk 0:00:00]}  b2 {[%clk 0:00:00]} 28. Qc8+ {[%clk 0:00:00]}  Kg7 {[%clk 0:00:00]} 29. Qd8 {[%clk 0:00:00]}  b1=Q {[%clk 0:00:00]} 30. Qf6+ {[%clk 0:00:00]}  Kh6 {[%clk 0:00:00]} 31. Qg5+ {[%clk 0:00:00]}  Kg7 {[%clk 0:00:00]} 32. Qf6+ {[%clk 0:00:00]}  Kh6 {[%clk 0:00:00]} 33. Qg5+ {[%clk 0:00:00]}  Kg7 {[%clk 0:00:00]} 34. Qf6+ {[%clk 0:00:00]} 1/2-1/2


[Site "https://www.chess.com"]

[Event "Titled Tuesday Blitz May 2 Early 2023"]
[White "Reprintsev, Alexander"]
[Black "Senft, Sean"]
[WhiteFideId "14100541"]
[BlackFideId "2044960"]
[WhiteElo "2211"]
[BlackElo "1989"]
[Result "1/2-1/2"]
[Round "01"]
[TimeControl "180+2"]
[Date "2023.05.02"]
[WhiteClock "0:00:00"]
[BlackClock "0:00:00"]

1. e4 {[%clk 0:00:01]}  c5 {[%clk 0:00:01]} 2. b3 {[%clk 0:00:01]}  Nc6 {[%clk 0:00:01]} 3. Bb2 {[%clk 0:00:01]}  d6 {[%clk 0:00:01]} 4. Bb5 {[%clk 0:00:01]}  Bd7 {[%clk 0:00:01]} 5. Ne2 {[%clk 0:00:01]}  e5 {[%clk 0:00:01]} 6. d3 {[%clk 0:00:01]}  g6 {[%clk 0:00:01]} 7. Nd2 {[%clk 0:00:01]}  Bg7 {[%clk 0:00:01]} 8. O-O {[%clk 0:00:01]}  Nge7 {[%clk 0:00:01]} 9. f4 {[%clk 0:00:01]}  O-O {[%clk 0:00:01]} 10. Nf3 {[%clk 0:00:01]}  Nd4 {[%clk 0:00:01]} 11. Nexd4 {[%clk 0:00:01]}  cxd4 {[%clk 0:00:01]} 12. Bxd7 {[%clk 0:00:01]}  Qxd7 {[%clk 0:00:01]} 13. c3 {[%clk 0:00:01]}  dxc3 {[%clk 0:00:01]} 14. Bxc3 {[%clk 0:00:01]}  exf4 {[%clk 0:00:01]} 15. Bxg7 {[%clk 0:00:01]}  Kxg7 {[%clk 0:00:01]} 16. Qd2 {[%clk 0:00:01]}  Nc6 {[%clk 0:00:01]} 17. Qxf4 {[%clk 0:00:01]}  f5 {[%clk 0:00:01]} 18. Rae1 {[%clk 0:00:01]}  fxe4 {[%clk 0:00:01]} 19. Qxe4 {[%clk 0:00:01]}  Rae8 {[%clk 0:00:01]} 20. Qd5 {[%clk 0:00:01]}  Rf5 {[%clk 0:00:01]} 21. Qc4 {[%clk 0:00:01]}  Ne5 {[%clk 0:00:00]} 22. Qc3 {[%clk 0:00:01]}  Kg8 {[%clk 0:00:00]} 23. Nd4 {[%clk 0:00:01]}  Rxf1+ {[%clk 0:00:00]} 24. Rxf1 {[%clk 0:00:01]}  Rf8 {[%clk 0:00:00]} 25. Rxf8+ {[%clk 0:00:00]}  Kxf8 {[%clk 0:00:00]} 26. Qa5 {[%clk 0:00:00]}  Qg4 {[%clk 0:00:00]} 27. Qd8+ {[%clk 0:00:00]}  Kg7 {[%clk 0:00:00]} 28. Qe7+ {[%clk 0:00:00]}  Kh6 {[%clk 0:00:00]} 29. Qf8+ {[%clk 0:00:00]}  Kh5 {[%clk 0:00:00]} 30. Qf2 {[%clk 0:00:00]}  Nxd3 {[%clk 0:00:00]} 31. Qf3 {[%clk 0:00:00]}  Qxf3 {[%clk 0:00:00]} 32. gxf3 {[%clk 0:00:00]}  Kg5 {[%clk 0:00:00]} 33. Nb5 {[%clk 0:00:00]}  Nc1 {[%clk 0:00:00]} 34. Nxd6 {[%clk 0:00:00]}  Nxa2 {[%clk 0:00:00]} 35. Nxb7 {[%clk 0:00:00]}  Kf4 {[%clk 0:00:00]} 36. Kf2 {[%clk 0:00:00]}  Nc1 {[%clk 0:00:00]} 37. Nc5 {[%clk 0:00:00]}  Na2 {[%clk 0:00:00]} 38. Nd3+ {[%clk 0:00:00]}  Kf5 {[%clk 0:00:00]} 39. Ke3 {[%clk 0:00:00]}  Nc3 {[%clk 0:00:00]} 40. Kd4 {[%clk 0:00:00]}  Ne2+ {[%clk 0:00:00]} 41. Kc5 {[%clk 0:00:00]}  g5 {[%clk 0:00:00]} 42. b4 {[%clk 0:00:00]}  h5 {[%clk 0:00:00]} 43. b5 {[%clk 0:00:00]}  h4 {[%clk 0:00:00]} 44. Kc6 {[%clk 0:00:00]}  h3 {[%clk 0:00:00]} 45. Kb7 {[%clk 0:00:00]}  Nd4 {[%clk 0:00:00]} 46. Kxa7 {[%clk 0:00:00]}  Nxb5+ {[%clk 0:00:00]} 47. Kb6 {[%clk 0:00:00]}  Nd4 {[%clk 0:00:00]} 48. Nf2 {[%clk 0:00:00]}  Nxf3 {[%clk 0:00:00]} 49. Nxh3 {[%clk 0:00:00]}  g4 {[%clk 0:00:00]} 50. Nf2 {[%clk 0:00:00]}  Nxh2 {[%clk 0:00:00]} 51. Nxg4 {[%clk 0:00:00]} 1/2-1/2


[Site "https://www.chess.com"]